Cogmind - Beta 15 @@@ ROGUE MODE // 2025.05.13 @ 20:24:17 Player: Henry Result: Self-destructed Performance ------------- Evolutions (1) 500 Regions Visited (5) 1000 Robots Destroyed (15) 75 Value Destroyed (234) 234 Prototype IDs (0) 0 Alien Tech Used (0) 0 Bonus (0) 0 TOTAL SCORE: 1809 Bonus ------- None Cogmind --------- Core Integrity 65/400 Matter 300/300 Energy 265/265 System Corruption 0% Temperature Cool (0) Movement Flying (112) Ox1 Location -8/Mines Parts ------- > --- POWER (1) -------- Improved Ion Engine > --- PROPULSION (3) --- Cesium-ion Thruster Cesium-ion Thruster > --- UTILITY (3) ------ Improved Terrain Scanner > --- WEAPON (2) ------- Axe > --- INVENTORY (5) ---- Axe Peak State ------------ > --- POWER ------------ Light Ion Engine > --- PROPULSION ------- Cesium-ion Thruster Cesium-ion Thruster Cesium-ion Thruster > --- UTILITY ---------- Improved Terrain Scanner > --- WEAPON ----------- Axe Axe > --- INVENTORY -------- Improved Ion Engine Cesium-ion Thruster Grenade Launcher [Rating: 19] Favorites ----------- Power Ion Engine Engine Ion Engine Power Core Light Nuclear Core Propulsion Cesium-ion Thruster Wheel Wheel Hover Unit Improved Hover Unit Flight Unit Cesium-ion Thruster Utility Improved Terrain Scanner Device Improved Terrain Scanner Weapon Light Assault Rifle Energy Gun Small Laser Ballistic Gun Light Assault Rifle Launcher Grenade Launcher Slashing Weapon Axe Build | -11 -10 -9 -9 -9 -8 ------- Run | Yrd Mat Mat Min Exi Min Slots Evolved 2 | . . 2 . . . Power . | . . . . . . Propulsion 1 | . . 1 . . . Utility 1 | . . 1 . . . Weapon . | . . . . . . Parts Attached 23 | 6 1 11 1 . 4 Power 4 | 1 1 1 . . 1 Engine 3 | 1 . 1 . . 1 Core 1 | . 1 . . . . Reactor . | . . . . . . Propulsion 12 | 2 . 9 . . 1 Treads . | . . . . . . Leg . | . . . . . . Wheel 4 | 2 . 2 . . . Hover 4 | . . 4 . . . Flight 4 | . . 3 . . 1 Utility 2 | 1 . . 1 . . Device 2 | 1 . . 1 . . Storage . | . . . . . . Processor . | . . . . . . Hackware . | . . . . . . Protection . | . . . . . . Artifact . | . . . . . . Weapon 5 | 2 . 1 . . 2 Energy Gun 1 | 1 . . . . . Energy Cannon . | . . . . . . Ballistic Gun 1 | 1 . . . . . Ballistic Cannon . | . . . . . . Launcher 1 | . . . . . 1 Special Weapon . | . . . . . . Impact Weapon . | . . . . . . Slashing Weapon 2 | . . 1 . . 1 Piercing Weapon . | . . . . . . Special Melee Weapon . | . . . . . . Unidentified Prototypes . | . . . . . . Parts Lost 10 | . 1 5 . . 4 Power 2 | . . 1 . . 1 Propulsion 6 | . 1 3 . . 2 Utility 1 | . . 1 . . . Weapon 1 | . . . . . 1 Highest Loss Streak 5 | . 1 5 . . 3 To Critical Strikes . | . . . . . . Average Backups 3 | 1 4 4 4 4 1 Power 1 | . 1 1 1 1 . Propulsion 1 | . 2 1 1 1 . Utility . | . . . . . . Weapon 1 | . 1 1 2 2 1 Tool/Special . | . . . . . . Unused Backups 3 | . . 2 1 . . Power 1 | . . 1 . . . Propulsion 1 | . . 1 . . . Utility . | . . . . . . Weapon 1 | . . . 1 . . Tool/Special . | . . . . . . Average Slot Usage (%) 69 | . 78 62 63 66 65 Engine 7 | . 8 1 11 11 11 Core 3 | . 5 7 . . . Wheel 9 | . 21 6 . . . Hover 3 | . . 14 . . . Flight 13 | . . 5 33 33 31 Device 11 | . 14 10 8 11 11 Energy Gun 6 | . 14 5 . . . Ballistic Gun 6 | . 14 5 . . . Slashing Weapon 5 | . . 5 11 11 12 Peak Build Rating 19 | 8 9 16 17 16 19 Average Rating 10 | 6 8 12 15 16 16 On Entrance 10 | . 8 9 13 16 16 Naked Turns . | . . . . . . Heaviest Build 11 | 8 8 9 7 7 11 Greatest Support 30 | 26 26 30 15 15 15 Greatest Overweight (x) 1 | 1 . 1 . . 1 Average Overweight (x) . | . . . . . . Largest Inventory Capacity 5 | 5 5 5 5 5 5 Average Capacity 5 | 5 5 5 5 5 5 Most Carried 5 | 4 5 5 5 4 4 Average Carried 3 | 2 4 4 4 4 1 Final Capacity 5 | 5 5 5 5 5 5 Final Carried 5 | 4 5 4 4 4 1 Class Distribution -------------------- 69% | Mutant 30% | Sprinter Dominant Class ---------------- Mutant | -10/Materials Mutant | -9/Materials Sprinter | -9/Mines Sprinter | -9/Exiles Sprinter | -8/Mines Resources | -11 -10 -9 -9 -9 -8 ----------- Run | Yrd Mat Mat Min Exi Min Matter Collected 459 | 261 45 23 95 . 35 Remotely . | . . . . . . Salvage Created 356 | 123 97 38 40 . 58 Parts 24 | 10 2 4 4 . 4 Haulers Intercepted . | . . . . . . Recyclers Shooed . | . . . . . . Parts Field Recycled . | . . . . . . Retrieved Matter . | . . . . . . Parts Self-Destructed . | . . . . . . Prevented . | . . . . . . Kills | -11 -10 -9 -9 -9 -8 ------- Run | Yrd Mat Mat Min Exi Min Combat Hostiles Destroyed 8 | . 2 4 . . 2 Melee 4 | . . 3 . . 1 Guns 2 | . 2 . . . . AOE 2 | . . 1 . . 1 Classes Destroyed 5 | 3 1 1 . . . Worker 2 | 2 . . . . . Tunneler 4 | 2 . . 2 . . Recycler 1 | 1 . . . . . Swarmer 5 | . . 4 . . 1 Grunt 3 | . 2 . . . 1 Best Kill Streak 3 | 2 2 3 2 . 1 Combat Bots Only 3 | . 2 3 . . 1 Max Kills in Single Turn 1 | 1 1 1 1 . 1 Gunslinging . | . . . . . . Exploded 1 | . . 1 . . 1 Melee 1 | . . 1 . . 1 Uniques/NPCs Destroyed . | . . . . . . Combat | -11 -10 -9 -9 -9 -8 -------- Run | Yrd Mat Mat Min Exi Min Hostile Shots Fired 151 | . 16 82 2 . 51 Missed 58 | . 3 33 1 . 21 Hits 93 | . 13 49 1 . 30 Projectile 93 | . 13 49 1 . 30 Critical Strikes 2 | . . 1 . . 1 Damage Taken 972 | . 166 499 15 . 292 Core 409 | . 74 222 15 . 98 Absorbed by Shields . | . . . . . . Core Remaining (%) 85 | 100 70 . . . . Volleys Fired 45 | 24 19 1 . . 1 Largest 2 | 2 2 2 . . 1 Hottest 60 | 60 60 60 . . 30 Shots Fired 89 | 48 38 2 . . 1 Gun 88 | 48 38 2 . . . Cannon . | . . . . . . Launcher 1 | . . . . . 1 Special . | . . . . . . Kinetic 44 | 24 19 1 . . . Thermal 44 | 24 19 1 . . . Explosive 1 | . . . . . 1 Electromagnetic . | . . . . . . Robot Hit Streak 11 | 5 11 1 . . . Robot Miss Streak 4 | 4 3 4 . . . Penetration Max . | . . . . . . Secondary Targets . | . . . . . . Shots Hit Robots 68 | 32 24 8 2 . 2 Core Hits 22 | 8 7 3 2 . 2 Critical Kills . | . . . . . . Critical Parts Destroyed . | . . . . . . Critical Strikes . | . . . . . . Melee Attacks 18 | . . 14 2 . 2 Impact . | . . . . . . Slashing 18 | . . 14 2 . 2 Piercing . | . . . . . . Sneak Attacks 3 | . . . 2 . 1 Combat Hostiles . | . . . . . . Follow-up Attacks . | . . . . . . Damage Inflicted 1382 | 312 233 520 184 . 133 Guns 552 | 312 233 7 . . . Cannons . | . . . . . . Explosions 284 | . . 268 . . 16 Melee 546 | . . 245 184 . 117 Ramming . | . . . . . . Kinetic 232 | 123 102 7 . . . Thermal 320 | 189 131 . . . . Explosive 284 | . . 268 . . 16 Electromagnetic . | . . . . . . Impact . | . . . . . . Slashing 546 | . . 245 184 . 117 Piercing . | . . . . . . Highest Corruption . | . . . . . . Average Corruption . | . . . . . . Corruption Purged . | . . . . . . Corruption Blocked . | . . . . . . Overload Shots . | . . . . . . Overflow Damage 214 | . . 175 . . 39 Projectiles . | . . . . . . Explosions 145 | . . 145 . . . Melee 69 | . . 30 . . 39 Knockbacks . | . . . . . . Impact . | . . . . . . Kinetic . | . . . . . . Secondary . | . . . . . . Self-Inflicted Damage 110 | . . 82 . . 28 Shots 2 | . . 1 . . 1 Rammed . | . . . . . . Targets Rammed . | . . . . . . Kicked . | . . . . . . Crushed . | . . . . . . Highest Temperature 144 | 60 144 24 . . . Average Temperature 41 | 26 59 14 . . . Received Heat Transfer 102 | . 93 9 . . . Siege Activations . | . . . . . . Martial Activations . | . . . . . . Shielding Activations . | . . . . . . Robots Disrupted . | . . . . . . Combat Hostiles . | . . . . . . Robots Corrupted . | . . . . . . Combat Hostiles . | . . . . . . Parts Fried . | . . . . . . Impact Corruptions . | . . . . . . Robots Melted . | . . . . . . Combat Hostiles . | . . . . . . Parts Melted 1 | . 1 . . . . Heat Transferred 725 | 425 300 . . . . Parts Sabotaged . | . . . . . . Parts Stolen . | . . . . . . Parts Stripped . | . . . . . . Power Chain Reactions . | . . . . . . Alert | -11 -10 -9 -9 -9 -8 ------- Run | Yrd Mat Mat Min Exi Min Maximum Alert Level 1 | . . . . . 1 Low Security (%) 98 | 100 100 100 100 . 92 Level 1 1 | . . . . . 7 Level 2 . | . . . . . . Level 3 . | . . . . . . Level 4 . | . . . . . . Level 5 . | . . . . . . High Security . | . . . . . . Max Security . | . . . . . . Peak Influence 205 | 5 40 136 62 . 205 Initial 52 | . . . 52 . . Average 31 | 1 12 15 53 . 122 Influence Increases 625 | 25 80 214 25 . 281 Destroy 0b10 Robot/C 160 | . 40 80 . . 40 Destroy 0b10 Robot/NC 35 | 25 . . 10 . . Destroy Leader 40 | . 10 20 . . 10 Successful Hack 8 | . . 8 . . . Disable Machine 30 | . . 30 . . . Destroy Structure 22 | . . 16 . . 6 Partial Spotted 30 | . . . 15 . 15 Lose Combat Pursuer 300 | . 30 60 . . 210 Influence Decreases 430 | 25 80 78 114 47 86 Entered New Map 131 | . . . 84 47 . Time Decay 201 | 25 70 30 30 . 46 Lost Part 98 | . 10 48 . . 40 Squads Dispatched 1 | . 1 . . . . Investigation . | . . . . . . Extermination . | . . . . . . Reinforcement 1 | . 1 . . . . Assault . | . . . . . . Garrison . | . . . . . . Intercept . | . . . . . . Searches Triggered . | . . . . . . Construction Impeded . | . . . . . . Haulers Reinforced . | . . . . . . Active Scanning Responses . | . . . . . . Cargo Convoy Interrupts . | . . . . . . Stealth | -11 -10 -9 -9 -9 -8 --------- Run | Yrd Mat Mat Min Exi Min Distress Signals . | . . . . . . Communications Jammed . | . . . . . . Distress Signals . | . . . . . . Times Spotted 58 | . 9 22 7 . 20 Peak Tracking Total 20 | . 4 12 20 . 10 Tactical Retreats 6 | . 1 1 1 . 3 Traps | -11 -10 -9 -9 -9 -8 ------- Run | Yrd Mat Mat Min Exi Min Traps Triggered . | . . . . . . Indirectly . | . . . . . . Trap Hack Attempts . | . . . . . . Triggered . | . . . . . . Disarmed . | . . . . . . Reprogrammed . | . . . . . . Reused . | . . . . . . Traps Extracted . | . . . . . . Installed . | . . . . . . Triggered . | . . . . . . Objects Rigged 1 | . . 1 . . . Exploded 1 | . . 1 . . . Machines | -11 -10 -9 -9 -9 -8 ---------- Run | Yrd Mat Mat Min Exi Min Machines Disabled 2 | . . 2 . . . Max in Single Turn 2 | . . 2 . . . Machines Repaired . | . . . . . . Machines Dismantled . | . . . . . . Machines Sabotaged . | . . . . . . Overloaded Fab Kills . | . . . . . . Hacking | -11 -10 -9 -9 -9 -8 --------- Run | Yrd Mat Mat Min Exi Min Machines Accessed 3 | . 2 1 . . . Terminals 3 | . 2 1 . . . Fabricators . | . . . . . . Repair Stations . | . . . . . . Recycling Units . | . . . . . . Scanalyzers . | . . . . . . Garrison Access . | . . . . . . Total Hacks 8 | . 5 3 . . . Successful 3 | . 2 1 . . . Failed 5 | . 3 2 . . . Catastrophic 1 | . 1 . . . . Database Lockouts . | . . . . . . Manual 8 | . 5 3 . . . Terminals 8 | . 5 3 . . . Fabricators . | . . . . . . Repair Stations . | . . . . . . Recycling Units . | . . . . . . Scanalyzers . | . . . . . . Garrison Access . | . . . . . . Terminal Hacks . | . . . . . . Fabricator Hacks . | . . . . . . Repair Station Hacks . | . . . . . . Recycling Unit Hacks . | . . . . . . Scanalyzer . | . . . . . . Garrison Access Hacks . | . . . . . . Unauthorized Hacks 3 | . 2 1 . . . Terminals 3 | . 2 1 . . . Track 1 | . 1 . . . . Botnet 1 | . 1 . . . . Detonate 1 | . . 1 . . . Fabricators . | . . . . . . Repair Stations . | . . . . . . Recycling Units . | . . . . . . Scanalyzers . | . . . . . . Garrison Access . | . . . . . . Data Cores Recovered . | . . . . . . Used . | . . . . . . Hacking Detections 3 | . 2 1 . . . Full Trace Events . | . . . . . . Feedback Events . | . . . . . . Feedback Blocked . | . . . . . . Robot Schematics Acquired . | . . . . . . Robots Built . | . . . . . . Authchips . | . . . . . . Time . | . . . . . . Total Robot Build Rating . | . . . . . . Part Schematics Acquired . | . . . . . . Parts Built . | . . . . . . Authchips . | . . . . . . Time . | . . . . . . Total Part Build Rating . | . . . . . . Parts Repaired . | . . . . . . Time . | . . . . . . Parts Recycled . | . . . . . . Recycled Matter . | . . . . . . Retrieved Matter . | . . . . . . Retrieved Components . | . . . . . . Parts Scanalyzed . | . . . . . . Part Schematics Acquired . | . . . . . . Parts Damaged . | . . . . . . Bothacking | -11 -10 -9 -9 -9 -8 ------------ Run | Yrd Mat Mat Min Exi Min Used RIF Installer . | . . . . . . Robots Hacked . | . . . . . . Non-combat . | . . . . . . Combat . | . . . . . . Robot Hacks Applied . | . . . . . . Relay Couplers Released . | . . . . . . Fabnet Peak Effective % . | . . . . . . Robots Rewired . | . . . . . . Allies Hacked . | . . . . . . Hacks Repelled . | . . . . . . Allies | -11 -10 -9 -9 -9 -8 -------- Run | Yrd Mat Mat Min Exi Min Total Allies . | . . . . . . Largest Group . | . . . . . . Highest-Rated Group . | . . . . . . Highest-Rated Ally . | . . . . . . Total Orders . | . . . . . . Ally Attacks . | . . . . . . Total Damage . | . . . . . . Kills . | . . . . . . Allies Corrupted . | . . . . . . Allies Melted . | . . . . . . Intel | -11 -10 -9 -9 -9 -8 ------- Run | Yrd Mat Mat Min Exi Min Active Infowar (turns) 586 | 72 219 112 73 9 101 Terrain 586 | 72 219 112 73 9 101 Robot Analysis Total . | . . . . . . Derelict Logs Recovered 2 | . . . 2 . . Drone Launches . | . . . . . . Drone Recoveries . | . . . . . . Exploration | -11 -10 -9 -9 -9 -8 ------------- Run | Yrd Mat Mat Min Exi Min Turns Passed 694 | 158 219 128 79 9 101 Spaces Moved 916 | 87 174 119 238 29 269 Core 12 | 12 . . . . . Treads . | . . . . . . Legs . | . . . . . . Wheels 264 | 75 174 15 . . . Hover 54 | . . 54 . . . Flight 586 | . . 50 238 29 269 Fastest Speed 29 | 50 80 29 29 29 29 Average Speed 48 | 89 85 47 29 29 32 Slowest Speed 125 | 100 90 125 29 29 112 Overloaded Moves . | . . . . . . Propulsion Burnouts . | . . . . . . Robots Hopped . | . . . . . . Potential Cave-ins . | . . . . . . Cave-ins Triggered . | . . . . . . Exploration Rate (%) 34 | 6 32 26 67 8 66 Regions Visited 5 Branch Regions 3 Pre-discovered Areas . | . . . . . . Known Exits Taken . | . . . . . . Unknown Exits Taken 5 | 1 1 1 1 1 . Scrap Searched 1 | . . . 1 . . Spaces Dug 18 | . . 18 . . . Terrain Destroyed 24 | . . 18 . . 6 Melee 1 | . . 1 . . . Projectile . | . . . . . . AOE 23 | . . 17 . . 6 Terrain Rammed . | . . . . . . Walls Destroyed . | . . . . . . Machines Disabled . | . . . . . . Actions | -11 -10 -9 -9 -9 -8 --------- Run | Yrd Mat Mat Min Exi Min Total 1042 | 120 209 165 243 28 277 Wait 17 | . 16 . 1 . . Move 911 | 86 173 118 237 28 269 Hop . | . . . . . . Pick Up 10 | 4 . 5 1 . . Fast Attach 17 | 6 . 10 1 . . Attach 7 | . . 3 . . 4 Detach 4 | . . 3 . . 1 Swap 1 | . 1 . . . . Drop 12 | . . 11 1 . . Fire 45 | 24 19 1 . . 1 Melee 18 | . . 14 2 . 2 Ram . | . . . . . . Kick . | . . . . . . Crush . | . . . . . . Escape Stasis . | . . . . . . Rewire . | . . . . . . Trap . | . . . . . . Miscellaneous . | . . . . . . Route ------- -11/Scrapyard -10/Materials -9/Materials -9/Mines -9/Exiles -8/Mines History --------- Turn | Location | Event 37 | -11/Scrapyard | Discovered new exit (range 12) 159 | -11/Scrapyard | Entered Materials 313 | -10/Materials | Build established: Mutant 355 | -10/Materials | Discovered new exit (range 10) 378 | -10/Materials | Entered another Materials area 378 | -9/Materials | Evolved 2 slots: Propulsion x1, Utility x1 501 | -9/Materials | Core integrity fell below 50% 503 | -9/Materials | Discovered new exit (range 8) 506 | -9/Materials | Entered Mines 521 | -9/Mines | Lost 5 parts (1p3n1u) 530 | -9/Mines | Assembled infested the area 550 | -9/Mines | YI-UF0 nonchalantly dropped a Grenade Launcher on the ground 574 | -9/Mines | Learned location of 1 exit from Proximity Caves 580 | -9/Mines | Learned Materials emergency access door positions 584 | -9/Mines | Discovered new exit (range 5) 585 | -9/Mines | Entered Exiles 590 | -9/Exiles | Discovered new exit (range 15) 594 | -9/Exiles | Entered Mines 638 | -8/Mines | Lost 3 parts (1p1n1w) 695 | -8/Mines | Core integrity fell below 20% 695 | -8/Mines | Self-destructed Last Messages --------------- 00603_ Lgt. Ion Engine destroyed. 00605_ Cesium-ion Thruster destroyed. 00607_ Grenade Launcher destroyed. 00608_ T-07 Excavator is excavating. 00611_ S-10 Pest destroyed. 00612_ Penetrated by Slug. 00612_ T-07 Excavator is excavating. 00615_ Slug penetrates Wall. 00621_ K-01 Serf collects debris. 00622_ T-07 Excavator is excavating. 00652_ Slug penetrates Wall. 00659_ Sneak attack on K-01 Serf. 00659_ Destroyed Lgt. Ion Engine. 00672_ K-01 Serf cleans the Seismic Survey Station. 00678_ G-47 Trooper destroyed. 00681_ Acquired 35 matter. 00681_ Slug penetrates Wall. 00681_ Cesium-ion Thruster destroyed. 00694_ Penetrated by Slug. Map ----- +----------------------------------------------------+ | ??????????# #??# #####????????????? | | ??######### #??# ## ##???????????? | | ??# #??# ##??????????? | | #?# ## ######?## ##?????????? | | ### ## #????#?# ##????????? | | ## ######## ## ###??????? | | "%" #### ##?????? | | " #??## #?????? | | ### ### # #???## #?????? | | ### ##?# #?# ## ##????## #?????? | | ### #??# #?# #####??????## #?????? | | #?## #?# ############# ##?????? | | ### ### #??????? | | ####### #??????? | | #?????# ##############??????? | | #?????## ##???????#??????????? | | #??????#### ##?????????????????? | | #???#?????## #?????????????????? | | #?????????### ##????????????????? | | #???????????## ##???????????????? | | #????????????## #????????????#??? | | ##???????????## #?????####??#???? | | ############# #????## ##?????? | | ##??#?# #?????? | | ### ######## ######## ##????? | | ##??????????# ## g b @ ##?#?? | | #??????????## ## ####### #???? | | #??????????## ##????# ##??? | | #?????????## """ ##???## #??? | | ##????????## """ ##???## #??? | | #??###?# ## """ #????##h #??? | | ### ### ####### ##?? | | ###### #??? | | #????## ######[### ##??? | | #?????## #####????#%#??##???? | | ####???#?#####????????#=#???????? | | ##?????????????????????# #???????? | | ##????????############### #???????? | | ###????????# #???????? | | ???????????# ###############???????? | | ?????#?????# #?????????????????????? | | ???????##### #####??#??????????????? | | ???????# #??#??????????????? | | ???????# """ """ #?????????????????? | | ???????# """ """ #?????#???????????? | | ???????# """ """ #?????????????????? | | ???????# #?????????????????? | | ???????# #?????????????????? | | ???????###########?????????????????? | | ?????????????#?????????????????????? | +----------------------------------------------------+ Best States ------------- Heat Dissipation 28 Energy Generation 14 Energy Capacity 265 Matter Stores 300 Matter Capacity 300 Sight Range 16 Terrain Scan Range 16 Terrain Scan Density 10 Evasion (%) 64 Item Schematics ----------------- None Robot Schematics ------------------ None Fabricated ------------ Nothing Repaired ---------- Nothing Alien Tech Used ----------------- None Achievements -------------- None Challenges ------------ None Game ------ Seed AblativeRainbowMantle Manual? 0 Play Time 00:15:55 Cumulative 458.4 hours Start 2025.05.13 @ 20:03:01 End 2025.05.13 @ 20:24:17 Sessions 1 Manual Loads 0 Difficulty Rogue Special Mode None Game No. 186 Rogue 186 Adventurer 0 Explorer 0 Win Type - Total 0 Types 0/0/0/0/0/0/0/0/0/0 Lore% 17 Gallery% 43 Achievement% 30 Wizard Run 0 Options --------- Layout 1 ASCII 0 Keyboard 1 Movement Numpad Keybinds 0 Fullscreen 1 Font 24/Smallcaps Map View 50x35 Zoom Use 0% Tactical HUD 1 Map Filters NONE Filters NONE Steam 1 RUN: 26a4592d-12ac-496e-bd6b-da3e112607f7